[Event "December 5 Late 2023"]
[Site "https://www.chess.com"]
[Date "2023.12.05"]
[Round "10"]
[White "Keleberda, Tymur"]
[Black "Krzyzanowski, Marcin"]
[Result "1/2-1/2"]
[Board "30"]
[TimeControl "180+1"]
[WhiteFideId "14174294"]
[BlackFideId "1132199"]
[WhiteElo "2527"]
[BlackElo "2735"]
[WhiteTeam "CAN"]
[BlackTeam "POL"]
[WhiteClock "0:00:07"]
[BlackClock "0:00:05"]

1. e4 {[%clk 0:03:00]}  c5 {[%clk 0:02:59]} 2. Nf3 {[%clk 0:03:00]}  d6 {[%clk 0:02:59]} 3. c3 {[%clk 0:03:00]}  Nf6 {[%clk 0:02:56]} 4. h3 {[%clk 0:03:01]}  g6 {[%clk 0:02:55]} 5. Bd3 {[%clk 0:03:01]}  Bg7 {[%clk 0:02:55]} 6. Bc2 {[%clk 0:03:01]}  O-O {[%clk 0:02:48]} 7. d4 {[%clk 0:03:00]}  cxd4 {[%clk 0:02:48]} 8. cxd4 {[%clk 0:03:01]}  Nc6 {[%clk 0:02:48]} 9. O-O {[%clk 0:03:01]}  e5 {[%clk 0:02:49]} 10. d5 {[%clk 0:02:55]}  Ne7 {[%clk 0:02:44]} 11. a4 {[%clk 0:02:53]}  Nh5 {[%clk 0:02:40]} 12. Nc3 {[%clk 0:02:52]}  h6 {[%clk 0:02:34]} 13. a5 {[%clk 0:02:47]}  Nf4 {[%clk 0:02:31]} 14. Bxf4 {[%clk 0:02:44]}  exf4 {[%clk 0:02:32]} 15. Re1 {[%clk 0:02:35]}  Bd7 {[%clk 0:02:12]} 16. e5 {[%clk 0:02:23]}  dxe5 {[%clk 0:02:12]} 17. Nxe5 {[%clk 0:02:24]}  Rc8 {[%clk 0:01:37]} 18. Qf3 {[%clk 0:02:18]}  Bf5 {[%clk 0:01:25]} 19. Bxf5 {[%clk 0:02:13]}  Nxf5 {[%clk 0:01:26]} 20. Qxf4 {[%clk 0:02:08]}  Qd6 {[%clk 0:01:24]} 21. Re4 {[%clk 0:01:09]}  Rc5 {[%clk 0:01:05]} 22. a6 {[%clk 0:01:03]}  bxa6 {[%clk 0:01:02]} 23. Nc6 {[%clk 0:00:53]}  Bxc3 {[%clk 0:00:44]} 24. bxc3 {[%clk 0:00:46]}  Qxd5 {[%clk 0:00:12]} 25. Ne7+ {[%clk 0:00:41]}  Nxe7 {[%clk 0:00:12]} 26. Rxe7 {[%clk 0:00:42]}  Rxc3 {[%clk 0:00:10]} 27. Rxa6 {[%clk 0:00:32]}  Rc4 {[%clk 0:00:10]} 28. Qf6 {[%clk 0:00:26]}  Qd1+ {[%clk 0:00:06]} 29. Kh2 {[%clk 0:00:26]}  Qd4 {[%clk 0:00:05]} 30. Qf3 {[%clk 0:00:17]}  Qf4+ {[%clk 0:00:05]} 31. Qxf4 {[%clk 0:00:16]}  Rxf4 {[%clk 0:00:06]} 32. f3 {[%clk 0:00:17]}  Rf5 {[%clk 0:00:05]} 33. Raxa7 {[%clk 0:00:17]}  h5 {[%clk 0:00:06]} 34. Kg3 {[%clk 0:00:16]}  Kg7 {[%clk 0:00:05]} 35. Ra4 {[%clk 0:00:15]}  Rc8 {[%clk 0:00:04]} 36. Re2 {[%clk 0:00:14]}  Rf6 {[%clk 0:00:03]} 37. Kf2 {[%clk 0:00:13]}  Rc7 {[%clk 0:00:04]} 38. Rb2 {[%clk 0:00:13]}  Rfc6 {[%clk 0:00:04]} 39. Raa2 {[%clk 0:00:13]}  h4 {[%clk 0:00:05]} 40. Ke3 {[%clk 0:00:12]}  g5 {[%clk 0:00:05]} 41. Kf2 {[%clk 0:00:11]}  Kg6 {[%clk 0:00:06]} 42. g3 {[%clk 0:00:12]}  hxg3+ {[%clk 0:00:05]} 43. Kxg3 {[%clk 0:00:13]}  f5 {[%clk 0:00:06]} 44. h4 {[%clk 0:00:12]}  gxh4+ {[%clk 0:00:05]} 45. Kxh4 {[%clk 0:00:13]}  Kf6 {[%clk 0:00:04]} 46. Kg3 {[%clk 0:00:13]}  Rg7+ {[%clk 0:00:05]} 47. Kf2 {[%clk 0:00:13]}  Rh7 {[%clk 0:00:05]} 48. Ke3 {[%clk 0:00:07]}  Re6+ {[%clk 0:00:03]} 49. Kf4 {[%clk 0:00:07]}  Rh4+ {[%clk 0:00:03]} 50. Kg3 {[%clk 0:00:07]}  Kg5 {[%clk 0:00:03]} 51. Rb5 {[%clk 0:00:06]}  Rh7 {[%clk 0:00:03]} 52. Raa5 {[%clk 0:00:06]}  Rf6 {[%clk 0:00:02]} 53. f4+ {[%clk 0:00:06]}  Kg6 {[%clk 0:00:03]} 54. Rb8 {[%clk 0:00:06]}  Rc7 {[%clk 0:00:03]} 55. Ra3 {[%clk 0:00:06]}  Rd7 {[%clk 0:00:03]} 56. Rg8+ {[%clk 0:00:06]}  Kf7 {[%clk 0:00:03]} 57. Rg5 {[%clk 0:00:07]}  Rc7 {[%clk 0:00:02]} 58. Kf3 {[%clk 0:00:06]}  Rc5 {[%clk 0:00:02]} 59. Ke3 {[%clk 0:00:07]}  Re6+ {[%clk 0:00:02]} 60. Kd4 {[%clk 0:00:07]}  Rb5 {[%clk 0:00:03]} 61. Kc4 {[%clk 0:00:05]}  Reb6 {[%clk 0:00:01]} 62. Rag3 {[%clk 0:00:04]}  Rb4+ {[%clk 0:00:02]} 63. Kd3 {[%clk 0:00:04]}  Rxf4 {[%clk 0:00:02]} 64. Rg7+ {[%clk 0:00:03]}  Kf8 {[%clk 0:00:03]} 65. Rg8+ {[%clk 0:00:04]}  Kf7 {[%clk 0:00:03]} 66. R3g7+ {[%clk 0:00:05]}  Kf6 {[%clk 0:00:04]} 67. Rg6+ {[%clk 0:00:05]}  Kf7 {[%clk 0:00:04]} 68. R6g7+ {[%clk 0:00:06]}  Kf6 {[%clk 0:00:05]} 69. Rg6+ {[%clk 0:00:06]}  Kf7 {[%clk 0:00:05]} 70. R6g7+ {[%clk 0:00:07]} 1/2-1/2

[Event "December 5 Late 2023"]
[Site "https://www.chess.com"]
[Date "2023.12.05"]
[Round "10"]
[White "Dmitrenko, Viktor"]
[Black "Bolourchifard, Farzad"]
[Result "0-1"]
[Board "31"]
[TimeControl "180+1"]
[WhiteFideId "14110270"]
[BlackFideId "12510084"]
[WhiteElo "2466"]
[BlackElo "2717"]
[WhiteTeam "UKR"]
[BlackTeam "IRI"]
[WhiteClock "0:00:00"]
[BlackClock "0:00:16"]

1. d4 {[%clk 0:03:00]}  Nf6 {[%clk 0:02:59]} 2. Nf3 {[%clk 0:03:00]}  e6 {[%clk 0:02:59]} 3. c4 {[%clk 0:02:59]}  d5 {[%clk 0:02:59]} 4. Nc3 {[%clk 0:02:58]}  Be7 {[%clk 0:02:59]} 5. Bg5 {[%clk 0:02:56]}  Nbd7 {[%clk 0:02:59]} 6. e3 {[%clk 0:02:54]}  O-O {[%clk 0:02:59]} 7. Qc2 {[%clk 0:02:46]}  c6 {[%clk 0:02:58]} 8. cxd5 {[%clk 0:02:45]}  Nxd5 {[%clk 0:02:55]} 9. h4 {[%clk 0:02:38]}  h6 {[%clk 0:02:23]} 10. Bxe7 {[%clk 0:02:27]}  Qxe7 {[%clk 0:02:23]} 11. Bc4 {[%clk 0:02:18]}  Nxc3 {[%clk 0:02:06]} 12. Qxc3 {[%clk 0:02:16]}  b5 {[%clk 0:01:56]} 13. Be2 {[%clk 0:02:05]}  Bb7 {[%clk 0:01:56]} 14. Rc1 {[%clk 0:01:51]}  Rfc8 {[%clk 0:01:51]} 15. O-O {[%clk 0:01:36]}  c5 {[%clk 0:01:17]} 16. dxc5 {[%clk 0:01:23]}  Rxc5 {[%clk 0:01:16]} 17. Qb4 {[%clk 0:01:13]}  a5 {[%clk 0:01:06]} 18. Qf4 {[%clk 0:01:08]}  Rac8 {[%clk 0:00:53]} 19. Rxc5 {[%clk 0:01:05]}  Qxc5 {[%clk 0:00:53]} 20. Rd1 {[%clk 0:01:00]}  Nf6 {[%clk 0:00:53]} 21. Qd6 {[%clk 0:00:20]}  Bd5 {[%clk 0:00:40]} 22. Qxc5 {[%clk 0:00:19]}  Rxc5 {[%clk 0:00:41]} 23. b3 {[%clk 0:00:18]}  b4 {[%clk 0:00:37]} 24. Bf1 {[%clk 0:00:14]}  Ne4 {[%clk 0:00:28]} 25. Nd4 {[%clk 0:00:13]}  Nc3 {[%clk 0:00:21]} 26. Ra1 {[%clk 0:00:13]}  e5 {[%clk 0:00:19]} 27. Nf5 {[%clk 0:00:11]}  Be6 {[%clk 0:00:18]} 28. Ng3 {[%clk 0:00:10]}  Rd5 {[%clk 0:00:17]} 29. Bc4 {[%clk 0:00:08]}  Rd2 {[%clk 0:00:17]} 30. Bxe6 {[%clk 0:00:07]}  fxe6 {[%clk 0:00:18]} 31. a3 {[%clk 0:00:08]}  a4 {[%clk 0:00:17]} 32. Nf1 {[%clk 0:00:03]}  Rc2 {[%clk 0:00:16]} 33. axb4 {[%clk 0:00:03]}  axb3 {[%clk 0:00:16]} 34. b5 {[%clk 0:00:00]}  b2 {[%clk 0:00:16]} 0-1

[Event "December 5 Late 2023"]
[Site "https://www.chess.com"]
[Date "2023.12.05"]
[Round "10"]
[White "Micic, Aleksa"]
[Black "Garcia Ramos, Daniel"]
[Result "0-1"]
[Board "32"]
[TimeControl "180+1"]
[WhiteFideId "989940"]
[BlackFideId "32010311"]
[WhiteElo "2398"]
[BlackElo "2600"]
[WhiteTeam "SRB"]
[BlackTeam "ESP"]
[WhiteClock "0:00:00"]
[BlackClock "0:00:29"]

1. e4 {[%clk 0:02:48]}  c6 {[%clk 0:02:59]} 2. d4 {[%clk 0:02:47]}  d5 {[%clk 0:02:59]} 3. e5 {[%clk 0:02:48]}  Bf5 {[%clk 0:02:59]} 4. h4 {[%clk 0:02:46]}  h5 {[%clk 0:02:54]} 5. c4 {[%clk 0:02:46]}  e6 {[%clk 0:02:53]} 6. Nc3 {[%clk 0:02:46]}  Be7 {[%clk 0:02:52]} 7. cxd5 {[%clk 0:02:36]}  cxd5 {[%clk 0:02:51]} 8. Bd3 {[%clk 0:02:05]}  Bxd3 {[%clk 0:02:48]} 9. Qxd3 {[%clk 0:02:05]}  Nc6 {[%clk 0:02:48]} 10. Nf3 {[%clk 0:02:03]}  Nh6 {[%clk 0:02:48]} 11. Bg5 {[%clk 0:01:55]}  Nf5 {[%clk 0:02:46]} 12. a3 {[%clk 0:01:43]}  Qb6 {[%clk 0:02:35]} 13. Bxe7 {[%clk 0:01:33]}  Ncxe7 {[%clk 0:02:30]} 14. Qb5+ {[%clk 0:01:29]}  Qxb5 {[%clk 0:02:29]} 15. Nxb5 {[%clk 0:01:30]}  Kd7 {[%clk 0:02:27]} 16. Rc1 {[%clk 0:01:27]}  Nc6 {[%clk 0:02:24]} 17. Rd1 {[%clk 0:01:20]}  Rac8 {[%clk 0:02:19]} 18. Ke2 {[%clk 0:01:17]}  a6 {[%clk 0:02:16]} 19. Nc3 {[%clk 0:01:17]}  b5 {[%clk 0:02:16]} 20. Kd3 {[%clk 0:01:15]}  Na5 {[%clk 0:02:14]} 21. Nd2 {[%clk 0:01:03]}  Nc4 {[%clk 0:02:09]} 22. Nxc4 {[%clk 0:00:58]}  Rxc4 {[%clk 0:02:10]} 23. Ne2 {[%clk 0:00:57]}  Rhc8 {[%clk 0:02:10]} 24. g3 {[%clk 0:00:52]}  b4 {[%clk 0:02:06]} 25. a4 {[%clk 0:00:33]}  b3 {[%clk 0:02:03]} 26. Rc1 {[%clk 0:00:32]}  Rxa4 {[%clk 0:01:34]} 27. Rxc8 {[%clk 0:00:29]}  Kxc8 {[%clk 0:01:35]} 28. Rc1+ {[%clk 0:00:26]}  Kb7 {[%clk 0:01:30]} 29. Rc3 {[%clk 0:00:19]}  Rb4 {[%clk 0:01:30]} 30. f3 {[%clk 0:00:19]}  a5 {[%clk 0:01:29]} 31. Rc1 {[%clk 0:00:20]}  a4 {[%clk 0:01:25]} 32. Rh1 {[%clk 0:00:16]}  Rc4 {[%clk 0:01:09]} 33. g4 {[%clk 0:00:15]}  Nh6 {[%clk 0:01:10]} 34. Rg1 {[%clk 0:00:11]}  Kb6 {[%clk 0:00:46]} 35. Nc3 {[%clk 0:00:07]}  Ka5 {[%clk 0:00:44]} 36. Ra1 {[%clk 0:00:04]}  hxg4 {[%clk 0:00:43]} 37. fxg4 {[%clk 0:00:04]}  Nxg4 {[%clk 0:00:43]} 38. Rg1 {[%clk 0:00:05]}  Nf2+ {[%clk 0:00:42]} 39. Ke3 {[%clk 0:00:04]}  Rxc3+ {[%clk 0:00:29]} 40. bxc3 {[%clk 0:00:03]}  a3 {[%clk 0:00:29]} 41. Kxf2 {[%clk 0:00:00]}  a2 {[%clk 0:00:29]} 0-1

[Event "December 5 Late 2023"]
[Site "https://www.chess.com"]
[Date "2023.12.05"]
[Round "10"]
[White "Lin, Bryan Enming"]
[Black "Bardyk, Artem"]
[Result "0-1"]
[Board "40"]
[TimeControl "180+1"]
[WhiteFideId "30987121"]
[BlackFideId "34349979"]
[WhiteElo "2519"]
[BlackElo "2838"]
[WhiteTeam "USA"]
[BlackTeam "RUS"]
[WhiteClock "0:00:01"]
[BlackClock "0:00:08"]

1. e4 {[%clk 0:02:58]}  e5 {[%clk 0:02:57]} 2. Nf3 {[%clk 0:02:58]}  Nc6 {[%clk 0:02:57]} 3. Nc3 {[%clk 0:02:59]}  Nf6 {[%clk 0:02:57]} 4. a3 {[%clk 0:03:00]}  Bc5 {[%clk 0:02:50]} 5. Nxe5 {[%clk 0:02:59]}  O-O {[%clk 0:02:50]} 6. Nxc6 {[%clk 0:02:57]}  dxc6 {[%clk 0:02:51]} 7. h3 {[%clk 0:02:52]}  Qd4 {[%clk 0:02:45]} 8. Qf3 {[%clk 0:02:51]}  Be6 {[%clk 0:02:25]} 9. d3 {[%clk 0:02:47]}  Nd7 {[%clk 0:02:24]} 10. Be3 {[%clk 0:02:47]}  Qe5 {[%clk 0:02:23]} 11. Bxc5 {[%clk 0:02:46]}  Qxc5 {[%clk 0:02:23]} 12. Be2 {[%clk 0:02:45]}  f5 {[%clk 0:02:20]} 13. Qe3 {[%clk 0:02:43]}  Qd6 {[%clk 0:02:14]} 14. O-O-O {[%clk 0:02:39]}  f4 {[%clk 0:02:10]} 15. Qd2 {[%clk 0:02:39]}  b5 {[%clk 0:02:07]} 16. d4 {[%clk 0:02:36]}  a6 {[%clk 0:01:58]} 17. e5 {[%clk 0:02:33]}  Qe7 {[%clk 0:01:55]} 18. Bf3 {[%clk 0:02:31]}  Rab8 {[%clk 0:01:50]} 19. Bxc6 {[%clk 0:02:03]}  b4 {[%clk 0:01:49]} 20. Bxd7 {[%clk 0:02:03]}  Qxd7 {[%clk 0:01:40]} 21. axb4 {[%clk 0:01:51]}  Rxb4 {[%clk 0:01:40]} 22. d5 {[%clk 0:01:50]}  Bf5 {[%clk 0:01:40]} 23. Rhe1 {[%clk 0:01:42]}  Rfb8 {[%clk 0:01:24]} 24. b3 {[%clk 0:01:40]}  a5 {[%clk 0:01:15]} 25. d6 {[%clk 0:01:36]}  a4 {[%clk 0:01:03]} 26. dxc7 {[%clk 0:01:32]}  Qxc7 {[%clk 0:01:04]} 27. Qd5+ {[%clk 0:00:43]}  Kh8 {[%clk 0:01:01]} 28. Qd6 {[%clk 0:00:43]}  Qc8 {[%clk 0:00:49]} 29. bxa4 {[%clk 0:00:30]}  h6 {[%clk 0:00:43]} 30. Rd3 {[%clk 0:00:14]}  Bxd3 {[%clk 0:00:27]} 31. Qxd3 {[%clk 0:00:15]}  Rc4 {[%clk 0:00:25]} 32. Nd5 {[%clk 0:00:11]}  Rxa4 {[%clk 0:00:23]} 33. e6 {[%clk 0:00:05]}  Ra1+ {[%clk 0:00:21]} 34. Kd2 {[%clk 0:00:05]}  Rxe1 {[%clk 0:00:21]} 35. Kxe1 {[%clk 0:00:06]}  Qxe6+ {[%clk 0:00:22]} 36. Kd2 {[%clk 0:00:06]}  Rb1 {[%clk 0:00:17]} 37. Kc3 {[%clk 0:00:02]}  Qe1+ {[%clk 0:00:16]} 38. Qd2 {[%clk 0:00:02]}  Qe5+ {[%clk 0:00:16]} 39. Qd4 {[%clk 0:00:02]}  Qe1+ {[%clk 0:00:14]} 40. Qd2 {[%clk 0:00:02]}  Qe8 {[%clk 0:00:15]} 41. Nxf4 {[%clk 0:00:02]}  Qc6+ {[%clk 0:00:13]} 42. Kd4 {[%clk 0:00:01]}  Rb5 {[%clk 0:00:11]} 43. Ke3 {[%clk 0:00:01]}  Re5+ {[%clk 0:00:10]} 44. Kd4 {[%clk 0:00:01]}  Re4+ {[%clk 0:00:08]} 45. Kd3 {[%clk 0:00:01]}  Qc4# {[%clk 0:00:08]} 0-1

[Event "December 5 Late 2023"]
[Site "https://www.chess.com"]
[Date "2023.12.05"]
[Round "10"]
[White "Mekhitarian, Krikor Sevag"]
[Black "Rogov, Matfey"]
[Result "0-1"]
[Board "41"]
[TimeControl "180+1"]
[WhiteFideId "2107660"]
[BlackFideId "44191308"]
[WhiteElo "2816"]
[BlackElo "2517"]
[WhiteTeam "BRA"]
[BlackTeam "RUS"]
[WhiteClock "0:00:00"]
[BlackClock "0:00:04"]

1. Nf3 {[%clk 0:03:00]}  d5 {[%clk 0:02:59]} 2. c4 {[%clk 0:03:00]}  e6 {[%clk 0:02:51]} 3. d4 {[%clk 0:02:59]}  Nf6 {[%clk 0:02:51]} 4. cxd5 {[%clk 0:03:00]}  exd5 {[%clk 0:02:51]} 5. Nc3 {[%clk 0:03:00]}  Bb4 {[%clk 0:02:41]} 6. Bf4 {[%clk 0:03:00]}  c6 {[%clk 0:02:40]} 7. e3 {[%clk 0:03:00]}  Bf5 {[%clk 0:02:40]} 8. Qb3 {[%clk 0:02:59]}  a5 {[%clk 0:02:33]} 9. a3 {[%clk 0:02:58]}  Bxc3+ {[%clk 0:02:33]} 10. bxc3 {[%clk 0:02:58]}  b5 {[%clk 0:01:57]} 11. a4 {[%clk 0:02:58]}  bxa4 {[%clk 0:01:57]} 12. Qa3 {[%clk 0:02:58]}  Nbd7 {[%clk 0:01:46]} 13. Be2 {[%clk 0:02:57]}  Ne4 {[%clk 0:01:42]} 14. O-O {[%clk 0:02:49]}  Qe7 {[%clk 0:01:42]} 15. c4 {[%clk 0:02:45]}  Qxa3 {[%clk 0:01:29]} 16. Rxa3 {[%clk 0:02:46]}  f6 {[%clk 0:01:19]} 17. h3 {[%clk 0:02:42]}  h5 {[%clk 0:01:14]} 18. Rc1 {[%clk 0:02:39]}  g5 {[%clk 0:01:04]} 19. Bh2 {[%clk 0:02:39]}  g4 {[%clk 0:00:48]} 20. Nh4 {[%clk 0:02:37]}  Be6 {[%clk 0:00:44]} 21. Ng6 {[%clk 0:02:38]}  Rg8 {[%clk 0:00:41]} 22. Nf4 {[%clk 0:02:38]}  gxh3 {[%clk 0:00:37]} 23. Bxh5+ {[%clk 0:02:28]}  Ke7 {[%clk 0:00:21]} 24. g3 {[%clk 0:02:11]}  Nb6 {[%clk 0:00:18]} 25. c5 {[%clk 0:01:46]}  Nc4 {[%clk 0:00:16]} 26. Rxa4 {[%clk 0:01:46]}  Rgb8 {[%clk 0:00:10]} 27. Be2 {[%clk 0:01:43]}  Rb4 {[%clk 0:00:10]} 28. Ra2 {[%clk 0:01:40]}  a4 {[%clk 0:00:09]} 29. g4 {[%clk 0:01:23]}  a3 {[%clk 0:00:07]} 30. f3 {[%clk 0:00:45]}  Ned2 {[%clk 0:00:07]} 31. Kf2 {[%clk 0:00:40]}  Rb2 {[%clk 0:00:07]} 32. Rca1 {[%clk 0:00:36]}  Nb3 {[%clk 0:00:07]} 33. Nd3 {[%clk 0:00:13]}  Nxa1 {[%clk 0:00:06]} 34. Rxa1 {[%clk 0:00:13]}  Rd2 {[%clk 0:00:05]} 35. Nb4 {[%clk 0:00:13]}  Bd7 {[%clk 0:00:03]} 36. Ke1 {[%clk 0:00:13]}  Rb2 {[%clk 0:00:02]} 37. Nd3 {[%clk 0:00:09]}  Rc2 {[%clk 0:00:02]} 38. Nb4 {[%clk 0:00:09]}  Rb2 {[%clk 0:00:02]} 39. Nd3 {[%clk 0:00:09]}  Rb3 {[%clk 0:00:03]} 40. Ra2 {[%clk 0:00:09]}  Rb1+ {[%clk 0:00:03]} 41. Kf2 {[%clk 0:00:09]}  Nb2 {[%clk 0:00:03]} 42. Nf4 {[%clk 0:00:04]}  Nd1+ {[%clk 0:00:04]} 43. Kg3 {[%clk 0:00:00]}  Nc3 {[%clk 0:00:04]} 0-1

[Event "December 5 Late 2023"]
[Site "https://www.chess.com"]
[Date "2023.12.05"]
[Round "10"]
[White "Yuan, Qingyu"]
[Black "Ferreira, Vitor Hugo Vieira"]
[Result "0-1"]
[Board "42"]
[TimeControl "180+1"]
[WhiteFideId "8609772"]
[BlackFideId "2119765"]
[WhiteElo "2794"]
[BlackElo "2513"]
[WhiteTeam "CHN"]
[BlackTeam "BRA"]
[WhiteClock "0:00:00"]
[BlackClock "0:00:09"]

1. Nf3 {[%clk 0:03:00]}  d5 {[%clk 0:02:58]} 2. b3 {[%clk 0:03:00]}  Bf5 {[%clk 0:02:56]} 3. Bb2 {[%clk 0:03:01]}  e6 {[%clk 0:02:56]} 4. e3 {[%clk 0:03:00]}  Nf6 {[%clk 0:02:56]} 5. Bd3 {[%clk 0:03:00]}  Bg6 {[%clk 0:02:52]} 6. Ne5 {[%clk 0:02:58]}  Nbd7 {[%clk 0:02:51]} 7. Nxg6 {[%clk 0:02:57]}  hxg6 {[%clk 0:02:51]} 8. Be2 {[%clk 0:02:55]}  Bd6 {[%clk 0:02:49]} 9. h3 {[%clk 0:02:55]}  g5 {[%clk 0:02:47]} 10. d3 {[%clk 0:02:52]}  Qe7 {[%clk 0:02:45]} 11. a3 {[%clk 0:02:52]}  e5 {[%clk 0:02:40]} 12. Nd2 {[%clk 0:02:52]}  O-O-O {[%clk 0:02:34]} 13. b4 {[%clk 0:02:46]}  Kb8 {[%clk 0:02:33]} 14. c4 {[%clk 0:02:44]}  c6 {[%clk 0:02:26]} 15. Qc2 {[%clk 0:02:33]}  g4 {[%clk 0:02:24]} 16. O-O-O {[%clk 0:02:25]}  gxh3 {[%clk 0:02:20]} 17. gxh3 {[%clk 0:02:25]}  a5 {[%clk 0:02:07]} 18. c5 {[%clk 0:02:21]}  Bc7 {[%clk 0:02:07]} 19. Qa4 {[%clk 0:02:17]}  axb4 {[%clk 0:02:06]} 20. axb4 {[%clk 0:02:18]}  d4 {[%clk 0:02:04]} 21. Kc2 {[%clk 0:02:06]}  dxe3 {[%clk 0:02:00]} 22. Ra1 {[%clk 0:02:04]}  Kc8 {[%clk 0:01:57]} 23. fxe3 {[%clk 0:02:04]}  Nd5 {[%clk 0:01:57]} 24. Nc4 {[%clk 0:02:03]}  e4 {[%clk 0:01:48]} 25. Qa8+ {[%clk 0:02:00]}  Nb8 {[%clk 0:01:49]} 26. Bg4+ {[%clk 0:02:00]}  Rd7 {[%clk 0:01:45]} 27. d4 {[%clk 0:01:48]}  g6 {[%clk 0:01:37]} 28. Ra7 {[%clk 0:01:23]}  f5 {[%clk 0:01:28]} 29. Qxb7+ {[%clk 0:01:21]}  Kd8 {[%clk 0:01:29]} 30. Ra8 {[%clk 0:01:19]}  Ke8 {[%clk 0:01:16]} 31. Rxb8+ {[%clk 0:01:07]}  Bxb8 {[%clk 0:01:17]} 32. Qxb8+ {[%clk 0:01:07]}  Rd8 {[%clk 0:01:18]} 33. Qg3 {[%clk 0:00:52]}  fxg4 {[%clk 0:01:14]} 34. Qxg4 {[%clk 0:00:52]}  Nxb4+ {[%clk 0:00:51]} 35. Kb3 {[%clk 0:00:39]}  Nd3 {[%clk 0:00:40]} 36. Qxg6+ {[%clk 0:00:38]}  Qf7 {[%clk 0:00:36]} 37. Qxf7+ {[%clk 0:00:18]}  Kxf7 {[%clk 0:00:35]} 38. Bc3 {[%clk 0:00:16]}  Ke6 {[%clk 0:00:28]} 39. Nb6 {[%clk 0:00:14]}  Nf2 {[%clk 0:00:26]} 40. Rh2 {[%clk 0:00:13]}  Rhf8 {[%clk 0:00:21]} 41. h4 {[%clk 0:00:11]}  Ng4 {[%clk 0:00:21]} 42. Re2 {[%clk 0:00:08]}  Kf5 {[%clk 0:00:20]} 43. Nc4 {[%clk 0:00:06]}  Nf6 {[%clk 0:00:17]} 44. Nd6+ {[%clk 0:00:04]}  Kg4 {[%clk 0:00:18]} 45. Rf2 {[%clk 0:00:03]}  Nd5 {[%clk 0:00:15]} 46. Rxf8 {[%clk 0:00:02]}  Rxf8 {[%clk 0:00:16]} 47. Nxe4 {[%clk 0:00:02]}  Nxe3 {[%clk 0:00:12]} 48. Ng5 {[%clk 0:00:01]}  Kxh4 {[%clk 0:00:10]} 49. Ne6 {[%clk 0:00:00]}  Rf3 {[%clk 0:00:09]} 0-1

[Event "December 5 Late 2023"]
[Site "https://www.chess.com"]
[Date "2023.12.05"]
[Round "10"]
[White "Bold, Andre"]
[Black "Slugin, Sergey"]
[Result "1-0"]
[Board "43"]
[TimeControl "180+1"]
[WhiteFideId "16208471"]
[BlackFideId "4122569"]
[WhiteElo "2511"]
[BlackElo "2711"]
[WhiteTeam "GER"]
[BlackTeam "RUS"]
[WhiteClock "0:00:50"]
[BlackClock "0:00:02"]

1. Nf3 {[%clk 0:03:00]}  d5 {[%clk 0:02:55]} 2. e3 {[%clk 0:03:01]}  Nf6 {[%clk 0:02:55]} 3. b3 {[%clk 0:02:59]}  Bg4 {[%clk 0:02:54]} 4. h3 {[%clk 0:02:58]}  Bh5 {[%clk 0:02:53]} 5. Be2 {[%clk 0:02:58]}  e6 {[%clk 0:02:52]} 6. Bb2 {[%clk 0:02:59]}  Nbd7 {[%clk 0:02:51]} 7. Ne5 {[%clk 0:02:59]}  Bxe2 {[%clk 0:02:48]} 8. Qxe2 {[%clk 0:03:00]}  Bd6 {[%clk 0:02:40]} 9. Nxd7 {[%clk 0:02:59]}  Qxd7 {[%clk 0:02:39]} 10. d3 {[%clk 0:02:59]}  e5 {[%clk 0:02:35]} 11. Nd2 {[%clk 0:02:57]}  c6 {[%clk 0:02:26]} 12. c4 {[%clk 0:02:48]}  Qe7 {[%clk 0:02:24]} 13. cxd5 {[%clk 0:02:46]}  cxd5 {[%clk 0:02:24]} 14. Rc1 {[%clk 0:02:45]}  O-O {[%clk 0:02:22]} 15. O-O {[%clk 0:02:45]}  Rac8 {[%clk 0:02:22]} 16. e4 {[%clk 0:02:43]}  dxe4 {[%clk 0:02:08]} 17. dxe4 {[%clk 0:02:40]}  Ba3 {[%clk 0:02:04]} 18. Bxa3 {[%clk 0:02:24]}  Qxa3 {[%clk 0:02:05]} 19. Rxc8 {[%clk 0:02:24]}  Rxc8 {[%clk 0:02:04]} 20. Nc4 {[%clk 0:02:24]}  Qc5 {[%clk 0:01:48]} 21. Rd1 {[%clk 0:02:03]}  h6 {[%clk 0:01:35]} 22. a4 {[%clk 0:01:53]}  b6 {[%clk 0:01:11]} 23. Kh2 {[%clk 0:01:39]}  Qc7 {[%clk 0:01:09]} 24. Qd3 {[%clk 0:01:33]}  Qc6 {[%clk 0:01:04]} 25. f3 {[%clk 0:01:33]}  Qc5 {[%clk 0:00:47]} 26. Qd6 {[%clk 0:01:26]}  Qxd6 {[%clk 0:00:41]} 27. Rxd6 {[%clk 0:01:26]}  Rc5 {[%clk 0:00:41]} 28. Rd8+ {[%clk 0:01:22]}  Kh7 {[%clk 0:00:41]} 29. Ra8 {[%clk 0:01:20]}  b5 {[%clk 0:00:17]} 30. axb5 {[%clk 0:01:20]}  Rxb5 {[%clk 0:00:18]} 31. Rxa7 {[%clk 0:01:21]}  Kg6 {[%clk 0:00:17]} 32. Rxf7 {[%clk 0:01:08]}  Rxb3 {[%clk 0:00:06]} 33. Nxe5+ {[%clk 0:01:08]}  Kh7 {[%clk 0:00:07]} 34. Ng4 {[%clk 0:01:06]}  Nh5 {[%clk 0:00:07]} 35. e5 {[%clk 0:01:02]}  Kg6 {[%clk 0:00:06]} 36. e6 {[%clk 0:00:57]}  Rb2 {[%clk 0:00:06]} 37. Ne5+ {[%clk 0:00:54]}  Kh7 {[%clk 0:00:07]} 38. e7 {[%clk 0:00:53]}  Rb8 {[%clk 0:00:02]} 39. Rf8 {[%clk 0:00:50]} 1-0